[Event "*** Titled Tuesday 3|2 Blitz"]
[Site "Chess.com"]
[Date "2016.09.06"]
[Round "4"]
[White "Lapitch"]
[Black "Alexander_Moskalenko"]
[Result "1/2-1/2"]
[WhiteElo "2584"]
[BlackElo "2653"]
[TimeControl "180+2"]
[EndTime "17:49:46 PDT"]
[Termination "Game drawn by agreement"]

1. Nf3 {[%clk 0:03:01.6]} 1... d5 {[%clk 0:03:01.1]} 2. c4 {[%clk 0:03:02]} 2...
c6 {[%clk 0:03:02.4]} 3. g3 {[%clk 0:03:00.3]} 3... Nf6 {[%clk 0:03:01.8]} 4.
Bg2 {[%clk 0:03:00.8]} 4... Bg4 {[%clk 0:03:03.4]} 5. Ne5 {[%clk 0:03:00.9]}
5... Be6 {[%clk 0:03:04.1]} 6. cxd5 {[%clk 0:03:00.4]} 6... Bxd5 {[%clk
0:03:06]} 7. Nf3 {[%clk 0:03:01.6]} 7... c5 {[%clk 0:03:07.2]} 8. Nc3 {[%clk
0:03:02.7]} 8... Bc6 {[%clk 0:03:08.8]} 9. O-O {[%clk 0:03:03.9]} 9... e6 {[%clk
0:03:10.3]} 10. d3 {[%clk 0:03:05.3]} 10... Nbd7 {[%clk 0:03:11]} 11. e4 {[%clk
0:03:03.5]} 11... Be7 {[%clk 0:03:06.2]} 12. Qc2 {[%clk 0:03:03.1]} 12... Rc8
{[%clk 0:03:06]} 13. Qe2 {[%clk 0:03:01.6]} 13... O-O {[%clk 0:03:06.3]} 14. d4
{[%clk 0:02:59]} 14... b6 {[%clk 0:03:00.3]} 15. Rd1 {[%clk 0:02:49.7]} 15...
Re8 {[%clk 0:02:43.7]} 16. Bf4 {[%clk 0:02:40.7]} 16... Bb7 {[%clk 0:02:32.6]}
17. d5 {[%clk 0:01:50.3]} 17... exd5 {[%clk 0:02:32.8]} 18. exd5 {[%clk
0:01:51.8]} 18... a6 {[%clk 0:02:12.7]} 19. a4 {[%clk 0:01:45.5]} 19... c4
{[%clk 0:02:13.9]} 20. Qf1 {[%clk 0:01:39.3]} 20... Bb4 {[%clk 0:02:12.1]} 21.
Nh4 {[%clk 0:01:21.3]} 21... Ne5 {[%clk 0:01:47.7]} 22. Bxe5 {[%clk 0:00:55.9]}
22... Rxe5 {[%clk 0:01:49.6]} 23. Nf3 {[%clk 0:00:55.4]} 23... Re7 {[%clk
0:01:47.8]} 24. Rd4 {[%clk 0:00:49.6]} 24... Bc5 {[%clk 0:00:45.2]} 25. Rxc4
{[%clk 0:00:49.2]} 25... Rec7 {[%clk 0:00:46.8]} 26. Rh4 {[%clk 0:00:46.3]}
26... h6 {[%clk 0:00:44.6]} 27. Rd1 {[%clk 0:00:46.7]} 27... Qd6 {[%clk
0:00:45.7]} 28. Nd2 {[%clk 0:00:46]} 28... Rd8 {[%clk 0:00:40]} 29. Nde4 {[%clk
0:00:45.8]} 29... Nxe4 {[%clk 0:00:39.9]} 30. Nxe4 {[%clk 0:00:47.7]} 30... Qf8
{[%clk 0:00:40.9]} 31. Nxc5 {[%clk 0:00:46.6]} 31... Rxc5 {[%clk 0:00:42.8]} 32.
b4 {[%clk 0:00:47.3]} 32... Rc7 {[%clk 0:00:41.1]} 33. Rhd4 {[%clk 0:00:48.5]}
33... Qd6 {[%clk 0:00:42.3]} 34. Qd3 {[%clk 0:00:47.2]} 34... Rdc8 {[%clk
0:00:42.7]} 35. h4 {[%clk 0:00:47.1]} 35... Rc3 {[%clk 0:00:44.1]} 36. Qf5
{[%clk 0:00:47.9]} 36... g6 {[%clk 0:00:43]} 37. Qf4 {[%clk 0:00:48.9]} 37...
Qxf4 {[%clk 0:00:43.3]} 38. Rxf4 {[%clk 0:00:50.8]} 38... Kg7 {[%clk 0:00:42.7]}
39. d6 {[%clk 0:00:49.7]} 39... Bxg2 {[%clk 0:00:43.4]} 40. Kxg2 {[%clk
0:00:51.6]} 40... Rd8 {[%clk 0:00:44.8]} 41. d7 {[%clk 0:00:52.6]} 41... Rc6
{[%clk 0:00:41]} 42. Re4 {[%clk 0:00:50.2]} 42... Kf8 {[%clk 0:00:41]} 43. Kf3
{[%clk 0:00:45.6]} 43... h5 {[%clk 0:00:42.2]} 44. Rd3 {[%clk 0:00:44.4]} 44...
b5 {[%clk 0:00:36.2]} 45. a5 {[%clk 0:00:44.3]} 45... Rc7 {[%clk 0:00:37.3]} 46.
Rd6 {[%clk 0:00:45.1]} 46... Ra7 {[%clk 0:00:34.9]} 47. Ke3 {[%clk 0:00:44.2]}
47... Rdxd7 {[%clk 0:00:35.5]} 48. Red4 {[%clk 0:00:43.9]} 48... Rdc7 {[%clk
0:00:37]} 49. Rb6 {[%clk 0:00:43.6]} 49... Rc3+ {[%clk 0:00:36.9]} 50. Kf4
{[%clk 0:00:42.9]} 50... Rb3 {[%clk 0:00:38]} 51. Re4 {[%clk 0:00:35.3]} 51...
Kg7 {[%clk 0:00:39.2]} 52. f3 {[%clk 0:00:35.6]} 52... Rb2 {[%clk 0:00:40.4]}
53. g4 {[%clk 0:00:35.5]} 53... hxg4 {[%clk 0:00:41.4]} 54. fxg4 {[%clk
0:00:37.4]} 54... Rf2+ {[%clk 0:00:42.2]} 55. Kg3 {[%clk 0:00:38.8]} 55... Rb2
{[%clk 0:00:43]} 56. h5 {[%clk 0:00:39.4]} 56... gxh5 {[%clk 0:00:43.9]} 57.
gxh5 {[%clk 0:00:41.3]} 57... Rb3+ {[%clk 0:00:39]} 58. Kh4 {[%clk 0:00:42.1]}
58... Rb1 {[%clk 0:00:40]} 59. Rg4+ {[%clk 0:00:40.4]} 59... Kh7 {[%clk
0:00:41]} 60. Rf4 {[%clk 0:00:41.5]} 60... Rh1+ {[%clk 0:00:39.5]} 61. Kg5
{[%clk 0:00:43]} 61... Rg1+ {[%clk 0:00:40.9]} 62. Kf6 {[%clk 0:00:41.6]} 62...
Rh1 {[%clk 0:00:42.4]} 63. Kg5 {[%clk 0:00:38.7]} 63... Rg1+ {[%clk 0:00:43.7]}
64. Kf5 {[%clk 0:00:38.9]} 64... Rh1 {[%clk 0:00:44.7]} 65. Kg4 {[%clk
0:00:40.4]} 65... Rg1+ {[%clk 0:00:45.8]} 66. Kh4 {[%clk 0:00:41.4]} 66... Rh1+
{[%clk 0:00:47.1]} 67. Kg5 {[%clk 0:00:38.1]} 67... Rg1+ {[%clk 0:00:47.8]} 68.
Rg4 {[%clk 0:00:39.5]} 68... Rh1 {[%clk 0:00:39.1]} 69. Rh4 {[%clk 0:00:32.4]}
69... Rg1+ {[%clk 0:00:33.2]} 70. Rg4 {[%clk 0:00:32.9]} 70... Rh1 {[%clk
0:00:31.9]} 71. h6 {[%clk 0:00:23.1]} 71... Rf1 {[%clk 0:00:22.1]} 72. Rf4
{[%clk 0:00:17.9]} 72... Rg1+ {[%clk 0:00:22.8]} 73. Rg4 {[%clk 0:00:19]} 73...
Rf1 {[%clk 0:00:24.3]} 74. Rf4 {[%clk 0:00:20.2]} 74... Rg1+ {[%clk 0:00:25.7]}
75. Rg4 {[%clk 0:00:20.9]} 75... Rh1 {[%clk 0:00:25.4]} 76. Rf4 {[%clk 0:00:18]}
76... Rg1+ {[%clk 0:00:26.5]} 77. Rg4 {[%clk 0:00:19]} 77... Re1 {[%clk
0:00:27.6]} 78. Kf4 {[%clk 0:00:17.3]} 78... f6 {[%clk 0:00:22.4]} 79. Rg7+
{[%clk 0:00:17.5]} 79... Rxg7 {[%clk 0:00:22.4]} 80. hxg7 {[%clk 0:00:19]} 80...
Kxg7 {[%clk 0:00:24.3]} 81. Rxa6 {[%clk 0:00:20.5]} 81... Rb1 {[%clk 0:00:25.4]}
82. Rb6 {[%clk 0:00:22.1]} 82... Rxb4+ {[%clk 0:00:26.4]} 83. Kf5 {[%clk
0:00:23.8]} 83... Rb1 {[%clk 0:00:23.5]} 84. Rb7+ {[%clk 0:00:24.4]} 84... Kh6
{[%clk 0:00:22.6]} 85. Kxf6 {[%clk 0:00:26]} 85... b4 {[%clk 0:00:23.9]} 86. a6
{[%clk 0:00:27.4]} 86... Ra1 {[%clk 0:00:25.2]} 87. a7 {[%clk 0:00:27.7]} 87...
b3 {[%clk 0:00:22.3]} 88. Rxb3 {[%clk 0:00:28.1]} 88... Ra6+ {[%clk 0:00:23.8]}
89. Kf5 {[%clk 0:00:28.8]} 89... Rxa7 {[%clk 0:00:24.9]} 1/2-1/2

[Event "*** Titled Tuesday 3|2 Blitz"]
[Site "Chess.com"]
[Date "2016.09.06"]
[Round "5"]
[White "beastfromweast"]
[Black "BellJackson95"]
[Result "0-1"]
[WhiteElo "2287"]
[BlackElo "2157"]
[TimeControl "180+2"]
[EndTime "17:52:35 PDT"]
[Termination "BellJackson95 won by checkmate"]

1. d4 {[%clk 0:03:02]} 1... Nf6 {[%clk 0:02:44.6]} 2. Nf3 {[%clk 0:03:01.9]}
2... c5 {[%clk 0:02:45.3]} 3. d5 {[%clk 0:03:01.6]} 3... e6 {[%clk 0:02:46.1]}
4. c4 {[%clk 0:03:02.4]} 4... exd5 {[%clk 0:02:46.6]} 5. cxd5 {[%clk 0:03:04.1]}
5... d6 {[%clk 0:02:47.8]} 6. Nc3 {[%clk 0:03:05.7]} 6... g6 {[%clk 0:02:48.7]}
7. e4 {[%clk 0:03:07.3]} 7... Bg7 {[%clk 0:02:49.6]} 8. Bd3 {[%clk 0:03:08.3]}
8... O-O {[%clk 0:02:49]} 9. h3 {[%clk 0:03:09.9]} 9... b5 {[%clk 0:02:49.4]}
10. Nxb5 {[%clk 0:03:03.8]} 10... Re8 {[%clk 0:02:49.2]} 11. Nc3 {[%clk
0:03:03.7]} 11... Nxe4 {[%clk 0:02:32.8]} 12. Bxe4 {[%clk 0:02:52.8]} 12...
Bxc3+ {[%clk 0:02:27.4]} 13. bxc3 {[%clk 0:02:54.7]} 13... Rxe4+ {[%clk
0:02:27.5]} 14. Be3 {[%clk 0:02:56.3]} 14... Ba6 {[%clk 0:02:22.2]} 15. Nd2
{[%clk 0:02:53.2]} 15... Rxe3+ {[%clk 0:02:06.6]} 16. fxe3 {[%clk 0:02:46.3]}
16... Qh4+ {[%clk 0:02:06]} 17. g3 {[%clk 0:02:46.1]} 17... Qxg3# {[%clk
0:02:06.3]} 0-1

[Event "*** Titled Tuesday 3|2 Blitz"]
[Site "Chess.com"]
[Date "2016.09.06"]
[Round "5"]
[White "NTBT_DHS"]
[Black "Ksenia_Legenko"]
[Result "0-1"]
[WhiteElo "2499"]
[BlackElo "2035"]
[TimeControl "180+2"]
[EndTime "17:54:02 PDT"]
[Termination "Ksenia_Legenko won by resignation"]

1. d4 {[%clk 0:02:59.2]} 1... d5 {[%clk 0:03:00.5]} 2. c4 {[%clk 0:03:00.5]}
2... dxc4 {[%clk 0:03:01]} 3. e3 {[%clk 0:03:01.5]} 3... Nf6 {[%clk 0:03:01.5]}
4. Bxc4 {[%clk 0:03:02.5]} 4... e6 {[%clk 0:03:03]} 5. Nf3 {[%clk 0:03:04]} 5...
a6 {[%clk 0:03:04.2]} 6. O-O {[%clk 0:03:04.4]} 6... b5 {[%clk 0:03:05.2]} 7.
Be2 {[%clk 0:03:05.7]} 7... Bb7 {[%clk 0:03:06.7]} 8. a4 {[%clk 0:03:06.6]} 8...
b4 {[%clk 0:03:00.1]} 9. a5 {[%clk 0:03:07.7]} 9... Be7 {[%clk 0:02:58.9]} 10.
Nbd2 {[%clk 0:03:08.1]} 10... O-O {[%clk 0:02:58.7]} 11. Nc4 {[%clk 0:03:09.4]}
11... Nbd7 {[%clk 0:02:55.3]} 12. Bd2 {[%clk 0:03:08.5]} 12... c5 {[%clk
0:02:52.2]} 13. dxc5 {[%clk 0:03:06.1]} 13... Bxc5 {[%clk 0:02:51.8]} 14. Qb3
{[%clk 0:02:58.6]} 14... Bd5 {[%clk 0:02:44.5]} 15. Rfd1 {[%clk 0:02:59.7]}
15... Qe7 {[%clk 0:02:39.5]} 16. Rac1 {[%clk 0:02:56]} 16... Ne4 {[%clk
0:02:26]} 17. Be1 {[%clk 0:02:56.5]} 17... Nd6 {[%clk 0:02:21.3]} 18. Bxb4
{[%clk 0:02:40.9]} 18... Nxc4 {[%clk 0:02:18.3]} 19. Bxc4 {[%clk 0:02:23.6]}
19... Bxb4 {[%clk 0:02:13.1]} 20. Bxd5 {[%clk 0:02:25]} 20... exd5 {[%clk
0:02:13.7]} 21. Rxd5 {[%clk 0:02:26.2]} 21... Nf6 {[%clk 0:02:11.4]} 22. Re5
{[%clk 0:02:24.5]} 22... Qb7 {[%clk 0:01:54.7]} 23. Rc4 {[%clk 0:02:25]} 23...
Rab8 {[%clk 0:01:54.5]} 24. h3 {[%clk 0:02:23.6]} 24... Bd6 {[%clk 0:01:53.2]}
25. Qxb7 {[%clk 0:02:21.5]} 25... Rxb7 {[%clk 0:01:54.4]} 26. Rf5 {[%clk
0:02:22.3]} 26... Rxb2 {[%clk 0:01:53.6]} 27. Rc6 {[%clk 0:02:23.6]} 27... Rb1+
{[%clk 0:01:54.4]} 0-1

[Event "*** Titled Tuesday 3|2 Blitz"]
[Site "Chess.com"]
[Date "2016.09.06"]
[Round "5"]
[White "putinwarrior"]
[Black "goingin33"]
[Result "1-0"]
[WhiteElo "2364"]
[BlackElo "2184"]
[TimeControl "180+2"]
[EndTime "17:54:23 PDT"]
[Termination "putinwarrior won by checkmate"]

1. e4 {[%clk 0:03:01.1]} 1... e6 {[%clk 0:03:00.9]} 2. d4 {[%clk 0:03:02]} 2...
d5 {[%clk 0:03:02.4]} 3. Nc3 {[%clk 0:03:03.9]} 3... Bb4 {[%clk 0:03:02.9]} 4.
Ne2 {[%clk 0:03:04.8]} 4... dxe4 {[%clk 0:03:03.7]} 5. a3 {[%clk 0:03:06.1]}
5... Be7 {[%clk 0:03:05.1]} 6. g4 {[%clk 0:03:03.5]} 6... c5 {[%clk 0:03:03.4]}
7. Nxe4 {[%clk 0:03:01.8]} 7... cxd4 {[%clk 0:03:04.3]} 8. Qxd4 {[%clk
0:03:02.9]} 8... Qxd4 {[%clk 0:03:01.3]} 9. Nxd4 {[%clk 0:03:04.8]} 9... Bd7
{[%clk 0:03:02.7]} 10. Bf4 {[%clk 0:02:52.6]} 10... a6 {[%clk 0:02:42.1]} 11.
Bg2 {[%clk 0:02:43.4]} 11... Nc6 {[%clk 0:02:42.1]} 12. Nxc6 {[%clk 0:02:37.3]}
12... Bxc6 {[%clk 0:02:44]} 13. O-O-O {[%clk 0:02:36.7]} 13... Rc8 {[%clk
0:02:28.3]} 14. Rd2 {[%clk 0:02:36.7]} 14... Nf6 {[%clk 0:02:27.5]} 15. Nxf6+
{[%clk 0:02:31]} 15... Bxf6 {[%clk 0:02:24.6]} 16. Bxc6+ {[%clk 0:02:32.9]}
16... Rxc6 {[%clk 0:02:25.3]} 17. g5 {[%clk 0:02:33.7]} 17... Be7 {[%clk
0:02:25.9]} 18. Rhd1 {[%clk 0:02:34]} 18... O-O {[%clk 0:02:05.2]} 19. Rd7
{[%clk 0:02:31.7]} 19... Bc5 {[%clk 0:02:06.8]} 20. Rxb7 {[%clk 0:02:31.9]}
20... Bxf2 {[%clk 0:02:07.4]} 21. Rdd7 {[%clk 0:02:32.9]} 21... Rc4 {[%clk
0:02:01.9]} 22. Bd6 {[%clk 0:02:31.9]} 22... Be3+ {[%clk 0:02:00.6]} 23. Kb1
{[%clk 0:02:31.1]} 23... Rfc8 {[%clk 0:01:36.5]} 24. Rxf7 {[%clk 0:02:30]} 24...
Bd4 {[%clk 0:01:37.4]} 25. c3 {[%clk 0:02:24.1]} 25... Bxc3 {[%clk 0:01:19.5]}
26. bxc3 {[%clk 0:02:22.2]} 26... Rxc3 {[%clk 0:01:19.2]} 27. Rxg7+ {[%clk
0:02:23.7]} 27... Kh8 {[%clk 0:01:21.1]} 28. Rxh7+ {[%clk 0:02:25.1]} 28... Kg8
{[%clk 0:01:23]} 29. Rbg7# {[%clk 0:02:26.5]} 1-0

[Event "*** Titled Tuesday 3|2 Blitz"]
[Site "Chess.com"]
[Date "2016.09.06"]
[Round "5"]
[White "lionheart95"]
[Black "bilelou"]
[Result "0-1"]
[WhiteElo "2426"]
[BlackElo "2291"]
[TimeControl "180+2"]
[EndTime "17:55:39 PDT"]
[Termination "bilelou won by resignation"]

1. e4 {[%clk 0:03:01.9]} 1... c5 {[%clk 0:03:00.5]} 2. Nf3 {[%clk 0:03:03.5]}
2... d6 {[%clk 0:02:59.5]} 3. d4 {[%clk 0:03:04.9]} 3... cxd4 {[%clk 0:03:00.4]}
4. Nxd4 {[%clk 0:03:06.8]} 4... Nf6 {[%clk 0:03:01.6]} 5. Nc3 {[%clk 0:03:08.2]}
5... a6 {[%clk 0:03:02.5]} 6. h3 {[%clk 0:03:09.2]} 6... e6 {[%clk 0:03:03]} 7.
g4 {[%clk 0:03:09.8]} 7... Be7 {[%clk 0:03:04.8]} 8. Bg2 {[%clk 0:03:10.9]} 8...
Nfd7 {[%clk 0:03:01.8]} 9. Be3 {[%clk 0:03:06.8]} 9... Nc6 {[%clk 0:03:02.2]}
10. Nce2 {[%clk 0:03:05.4]} 10... Nde5 {[%clk 0:02:56.1]} 11. b3 {[%clk
0:02:58.1]} 11... g5 {[%clk 0:02:54.1]} 12. O-O {[%clk 0:02:56.9]} 12... Ng6
{[%clk 0:02:49.3]} 13. c4 {[%clk 0:02:55]} 13... Bd7 {[%clk 0:02:49.2]} 14. Qd2
{[%clk 0:02:54.6]} 14... Nce5 {[%clk 0:02:42.6]} 15. Ng3 {[%clk 0:02:52.5]}
15... Nh4 {[%clk 0:02:36.2]} 16. Bh1 {[%clk 0:02:51.4]} 16... h6 {[%clk
0:02:21.5]} 17. Kh2 {[%clk 0:02:45.3]} 17... Neg6 {[%clk 0:02:21.4]} 18. Nh5
{[%clk 0:02:45.2]} 18... Bf6 {[%clk 0:02:16]} 19. Rad1 {[%clk 0:02:38.7]} 19...
Be5+ {[%clk 0:02:03.4]} 20. Kg1 {[%clk 0:02:39.6]} 20... Qc7 {[%clk 0:01:58.9]}
21. Ne2 {[%clk 0:02:33.4]} 21... d5 {[%clk 0:01:49.7]} 22. f4 {[%clk 0:02:28.9]}
22... gxf4 {[%clk 0:01:46.5]} 23. Bd4 {[%clk 0:02:28.9]} 23... dxe4 {[%clk
0:01:45.1]} 24. Bxe4 {[%clk 0:02:26.7]} 24... f3 {[%clk 0:01:40.8]} 25. Bxe5
{[%clk 0:02:26.3]} 25... Nxe5 {[%clk 0:01:34]} 26. Nd4 {[%clk 0:02:18.5]} 26...
O-O-O {[%clk 0:01:31.7]} 27. Qh2 {[%clk 0:02:15.7]} 27... f5 {[%clk 0:01:27.1]}
28. gxf5 {[%clk 0:02:09.8]} 28... exf5 {[%clk 0:01:23.3]} 29. Bxf3 {[%clk
0:02:07.7]} 29... Rhg8+ {[%clk 0:01:14.9]} 30. Kh1 {[%clk 0:02:04.6]} 30...
Nhxf3 {[%clk 0:01:14.7]} 31. Nxf3 {[%clk 0:02:03]} 31... Bc6 {[%clk 0:01:16.2]}
32. Rxd8+ {[%clk 0:02:02.7]} 32... Rxd8 {[%clk 0:01:09]} 0-1

[Event "*** Titled Tuesday 3|2 Blitz"]
[Site "Chess.com"]
[Date "2016.09.06"]
[Round "5"]
[White "Elshan1985"]
[Black "dusanacns"]
[Result "1-0"]
[WhiteElo "2591"]
[BlackElo "2546"]
[TimeControl "180+2"]
[EndTime "17:57:42 PDT"]
[Termination "Elshan1985 won on time"]

1. d4 {[%clk 0:03:01.9]} 1... d6 {[%clk 0:03:01.6]} 2. e4 {[%clk 0:03:01.9]}
2... Nf6 {[%clk 0:03:02.7]} 3. Nc3 {[%clk 0:03:00.8]} 3... e5 {[%clk 0:03:04.3]}
4. Nge2 {[%clk 0:02:53.1]} 4... exd4 {[%clk 0:03:05.7]} 5. Nxd4 {[%clk
0:02:53.8]} 5... Be7 {[%clk 0:03:07.3]} 6. g3 {[%clk 0:02:55.2]} 6... Nc6 {[%clk
0:03:08.4]} 7. Bg2 {[%clk 0:02:53.5]} 7... Bg4 {[%clk 0:03:08.8]} 8. Nxc6 {[%clk
0:02:51.7]} 8... bxc6 {[%clk 0:03:07.9]} 9. Qd3 {[%clk 0:02:52.7]} 9... O-O
{[%clk 0:03:08.6]} 10. h3 {[%clk 0:02:52.3]} 10... Be6 {[%clk 0:03:08.3]} 11.
O-O {[%clk 0:02:53.2]} 11... Nd7 {[%clk 0:03:09.4]} 12. f4 {[%clk 0:02:53.5]}
12... Nc5 {[%clk 0:03:00.1]} 13. Qe2 {[%clk 0:02:52.3]} 13... Rb8 {[%clk
0:02:57.5]} 14. b3 {[%clk 0:02:48.2]} 14... Bf6 {[%clk 0:02:48.9]} 15. Bb2
{[%clk 0:02:48.3]} 15... Re8 {[%clk 0:02:50.3]} 16. Rad1 {[%clk 0:02:25.5]}
16... Qc8 {[%clk 0:02:51.2]} 17. Kh2 {[%clk 0:02:24.8]} 17... Bxc3 {[%clk
0:02:36.4]} 18. Bxc3 {[%clk 0:02:25.3]} 18... Bd5 {[%clk 0:02:37.9]} 19. Rd4
{[%clk 0:02:00.3]} 19... f5 {[%clk 0:02:05.5]} 20. e5 {[%clk 0:01:58.6]} 20...
Bxg2 {[%clk 0:02:06.5]} 21. Qxg2 {[%clk 0:01:58.1]} 21... d5 {[%clk 0:01:52.9]}
22. g4 {[%clk 0:01:54.5]} 22... Ne6 {[%clk 0:01:44]} 23. Ra4 {[%clk 0:01:51.3]}
23... Nc5 {[%clk 0:01:26]} 24. Rxa7 {[%clk 0:01:51.8]} 24... Ne4 {[%clk
0:01:16.9]} 25. Ba5 {[%clk 0:01:51.6]} 25... Re7 {[%clk 0:01:15.2]} 26. gxf5
{[%clk 0:01:52.8]} 26... Qxf5 {[%clk 0:01:16.3]} 27. Rxc7 {[%clk 0:01:53.8]}
27... Rxc7 {[%clk 0:00:56.3]} 28. Bxc7 {[%clk 0:01:55.7]} 28... Rb4 {[%clk
0:00:57.9]} 29. Qg4 {[%clk 0:01:55.3]} 29... g6 {[%clk 0:00:53.4]} 30. Qxf5
{[%clk 0:01:55.1]} 30... gxf5 {[%clk 0:00:54.6]} 31. a4 {[%clk 0:01:56.2]} 31...
Rb7 {[%clk 0:00:52.1]} 32. Bd8 {[%clk 0:01:50.7]} 32... Rb8 {[%clk 0:00:51.1]}
33. Bc7 {[%clk 0:01:48.9]} 33... Rb7 {[%clk 0:00:51.9]} 34. Bd8 {[%clk
0:01:50.3]} 34... Rb8 {[%clk 0:00:52.9]} 35. Bh4 {[%clk 0:01:50.8]} 35... Kf7
{[%clk 0:00:53]} 36. Rg1 {[%clk 0:01:47.8]} 36... c5 {[%clk 0:00:51]} 37. Be1
{[%clk 0:01:47.5]} 37... c4 {[%clk 0:00:50.9]} 38. b4 {[%clk 0:01:48.2]} 38...
d4 {[%clk 0:00:52]} 39. b5 {[%clk 0:01:48.5]} 39... d3 {[%clk 0:00:52.3]} 40.
cxd3 {[%clk 0:01:49.4]} 40... cxd3 {[%clk 0:00:53.7]} 41. Bb4 {[%clk 0:01:51]}
41... Rc8 {[%clk 0:00:50.3]} 42. b6 {[%clk 0:01:52.3]} 42... Rc4 {[%clk
0:00:43.9]} 43. Rb1 {[%clk 0:01:52.5]} 43... Rc2+ {[%clk 0:00:32.7]} 44. Kg1
{[%clk 0:01:53.6]} 44... d2 {[%clk 0:00:29]} 45. Bxd2 {[%clk 0:01:54.3]} 45...
Nxd2 {[%clk 0:00:30]} 46. b7 {[%clk 0:01:53.5]} 46... Nf3+ {[%clk 0:00:31.2]}
47. Kf1 {[%clk 0:01:54.5]} 47... Rd2 {[%clk 0:00:16.2]} 48. Rb3 {[%clk
0:01:55.3]} 1-0

[Event "*** Titled Tuesday 3|2 Blitz"]
[Site "Chess.com"]
[Date "2016.09.06"]
[Round "5"]
[White "MattyDPerrine"]
[Black "Quiet_Desperation"]
[Result "1-0"]
[WhiteElo "2211"]
[BlackElo "2216"]
[TimeControl "180+2"]
[EndTime "17:57:52 PDT"]
[Termination "MattyDPerrine won by resignation"]

1. d4 {[%clk 0:03:01.9]} 1... Nf6 {[%clk 0:02:55.9]} 2. c4 {[%clk 0:03:00.2]}
2... e6 {[%clk 0:02:48.8]} 3. Nc3 {[%clk 0:02:59.6]} 3... Bb4 {[%clk 0:02:49.6]}
4. Qc2 {[%clk 0:02:59]} 4... Nc6 {[%clk 0:02:50.3]} 5. Nf3 {[%clk 0:02:54.3]}
5... d6 {[%clk 0:02:48.1]} 6. g3 {[%clk 0:02:46]} 6... Qe7 {[%clk 0:02:47]} 7.
Bg2 {[%clk 0:02:39.1]} 7... h6 {[%clk 0:02:47.6]} 8. O-O {[%clk 0:02:39.8]} 8...
Bxc3 {[%clk 0:02:48.3]} 9. Qxc3 {[%clk 0:02:41]} 9... O-O {[%clk 0:02:49.2]} 10.
b3 {[%clk 0:02:41.6]} 10... Ne4 {[%clk 0:02:46.5]} 11. Qc2 {[%clk 0:02:33.3]}
11... f5 {[%clk 0:02:47.3]} 12. Bb2 {[%clk 0:02:33.4]} 12... Bd7 {[%clk
0:02:45.6]} 13. a3 {[%clk 0:02:31.6]} 13... e5 {[%clk 0:02:39.1]} 14. dxe5
{[%clk 0:02:28.1]} 14... dxe5 {[%clk 0:02:38.6]} 15. Nh4 {[%clk 0:02:29.3]}
15... Ng5 {[%clk 0:02:32.2]} 16. Ng6 {[%clk 0:02:21.8]} 16... Qf6 {[%clk
0:02:33.4]} 17. Bd5+ {[%clk 0:02:17.3]} 17... Kh7 {[%clk 0:02:30.1]} 18. Nxf8+
{[%clk 0:02:17.6]} 18... Rxf8 {[%clk 0:02:30.8]} 19. f4 {[%clk 0:02:16]} 19...
Nf7 {[%clk 0:02:20.5]} 20. e4 {[%clk 0:01:50.8]} 20... Qg6 {[%clk 0:02:12.9]}
21. fxe5 {[%clk 0:01:33.7]} 21... Nfxe5 {[%clk 0:02:12]} 22. exf5 {[%clk
0:01:32.3]} 22... Bxf5 {[%clk 0:02:12.4]} 23. Rxf5 {[%clk 0:01:25.2]} 23... Rxf5
{[%clk 0:02:07.6]} 24. Be4 {[%clk 0:01:25.7]} 24... Nf3+ {[%clk 0:01:40.6]} 25.
Kh1 {[%clk 0:01:14.2]} 25... Nfd4 {[%clk 0:01:41.4]} 26. Bxd4 {[%clk 0:01:08.5]}
26... Nxd4 {[%clk 0:01:41.9]} 27. Bxf5 {[%clk 0:01:02.9]} 27... Nxf5 {[%clk
0:01:40.8]} 28. Qg2 {[%clk 0:00:29.7]} 28... c6 {[%clk 0:01:38]} 29. Re1 {[%clk
0:00:26.9]} 29... h5 {[%clk 0:01:26.7]} 30. Qe4 {[%clk 0:00:23.6]} 30... Kh6
{[%clk 0:01:25.6]} 31. Kg2 {[%clk 0:00:24]} 31... Qf6 {[%clk 0:01:11.4]} 32. Qe6
{[%clk 0:00:24.5]} 32... Kg6 {[%clk 0:01:10.5]} 33. Qxf6+ {[%clk 0:00:24.7]}
33... Kxf6 {[%clk 0:01:11.9]} 34. Re4 {[%clk 0:00:20.3]} 34... g5 {[%clk
0:01:07.5]} 35. Re8 {[%clk 0:00:21.3]} 35... Nd4 {[%clk 0:01:07]} 36. Ra8 {[%clk
0:00:20.1]} 36... Nxb3 {[%clk 0:01:06.8]} 37. Rxa7 {[%clk 0:00:21.4]} 37... Nc5
{[%clk 0:01:08.1]} 38. Ra5 {[%clk 0:00:21.9]} 38... b6 {[%clk 0:01:08.2]} 39.
Ra8 {[%clk 0:00:22.9]} 39... Ke5 {[%clk 0:01:08.4]} 40. Rg8 {[%clk 0:00:23.5]}
40... Kd4 {[%clk 0:01:08.1]} 41. Rxg5 {[%clk 0:00:24.5]} 41... Kxc4 {[%clk
0:01:09.9]} 42. Rxh5 {[%clk 0:00:25.9]} 42... Kb3 {[%clk 0:01:08.7]} 43. Rh6
{[%clk 0:00:27.3]} 43... Kxa3 {[%clk 0:01:05.6]} 44. Rxc6 {[%clk 0:00:28.2]}
44... Na4 {[%clk 0:01:05.2]} 45. h4 {[%clk 0:00:27.5]} 45... Kb4 {[%clk
0:01:07.1]} 46. h5 {[%clk 0:00:28.5]} 46... Kb5 {[%clk 0:01:09]} 47. Rc2 {[%clk
0:00:28]} 47... Nc5 {[%clk 0:01:10.4]} 48. h6 {[%clk 0:00:29]} 1-0